fUSD/lending_fUSD_20260426
["ID","MTS","AMOUNT","RATE_DAILY","PERIOD"]
[421174306,1777205432687,-500.0,0.00015246,2]
[421174307,1777205432696,-500.0,0.00015246,2]
[421174308,1777205432706,-500.0,0.00015246,2]
[421174309,1777205432716,-500.0,0.00015246,2]
[421174310,1777205432726,-500.0,0.00015246,2]
[421174311,1777205432735,-500.0,0.00015246,2]
[421174312,1777205432746,-500.0,0.00015246,2]
[421174313,1777205432756,-500.0,0.00015246,2]
[421174314,1777205432766,-500.0,0.00015246,2]
[421174315,1777205432777,-500.0,0.00015246,2]
[421174316,1777205432787,-500.0,0.00015246,2]
[421174317,1777205432796,-500.0,0.00015246,2]
[421174318,1777205432806,-500.0,0.00015246,2]
[421174319,1777205432816,-500.0,0.00015246,2]
[421174320,1777205432826,-500.0,0.00015246,2]
[421174321,1777205432835,-500.0,0.00015246,2]
[421174322,1777205432845,-500.0,0.00015246,2]
[421174323,1777205432855,-500.0,0.00015246,2]
[421174324,1777205432865,-500.0,0.00015246,2]
[421174325,1777205432874,-500.0,0.00015246,2]
[421174326,1777205432884,-500.0,0.00015246,2]
[421174327,1777205432900,-500.0,0.00015246,2]
[421174328,1777205432911,-500.0,0.00015246,2]
[421174329,1777205432923,-500.0,0.00015246,2]
[421174330,1777205432934,-500.0,0.00015246,2]
[421174331,1777205432944,-500.0,0.00015246,2]
[421174332,1777205432954,-250.0,0.00015246,2]
[421174333,1777205432965,-500.0,0.00015246,2]
[421174334,1777205432975,-500.0,0.00015246,2]
[421174335,1777205432986,-500.0,0.00015246,2]
[421174336,1777205432996,-500.0,0.00015246,2]
[421174337,1777205433007,-500.0,0.00015247,2]
[421174338,1777205433016,-151.0,0.00015248,2]
[421174339,1777205433027,-500.0,0.0001525,2]
[421174340,1777205433037,-500.0,0.0001525,2]
[421174341,1777205433048,-500.0,0.0001525,2]
[421174342,1777205433058,-500.0,0.0001525,2]
[421174343,1777205433070,-500.0,0.0001525,2]
[421174344,1777205433080,-500.0,0.0001525,2]
[421174345,1777205433091,-151.0,0.00015251,2]
[421174346,1777205433101,-500.0,0.00015273,2]
[421174347,1777205433111,-2000.0,0.00015359,2]
[421174348,1777205433121,-33093.9311,0.00015359,2]
[421174349,1777205433131,-212.44769369,0.00015521,2]
[421174350,1777205433142,-200.0,0.000157,2]
[421174351,1777205433153,-503.0,0.0001589,4]
[421174352,1777205433163,-500.0,0.0001589,2]
[421174353,1777205433174,-500.0,0.0001589,2]
[421174354,1777205433184,-500.0,0.0001589,2]
[421174355,1777205433194,-500.0,0.00016,2]
[421174356,1777205433204,-500.0,0.00016,2]
[421174357,1777205433214,-15282.803118,0.00016083,2]
[421174358,1777205433224,-3156.254,0.000161,2]
[421174359,1777205433234,-213.452,0.000161,2]
[421174360,1777205433245,-500.0,0.00016111,2]
[421174361,1777205433256,-500.0,0.00016111,2]
[421174362,1777205433266,-500.0,0.00016111,2]
[421174363,1777205433277,-64084.21298821,0.00016112,2]
[421174364,1777205433339,-2782.61635789,0.00016112,2]
[421174365,1777205433350,-33418.9327506,0.00016112,2]
[421174366,1777205433360,-3224.878326,0.00016112,2]
[421174367,1777205433371,-162.549293,0.00016112,2]
[421174368,1777205433381,-151.0,0.00016112,2]
[421174369,1777205433392,-151.0,0.00016112,2]
[421174370,1777205433403,-151.0,0.00016112,2]
[421174371,1777205433414,-151.0,0.00016112,2]
[421174372,1777205433424,-3782.131,0.00016137,2]
[421174373,1777205433435,-150.0,0.00016164,2]
[421174374,1777205433446,-150.0,0.00016164,2]
[421174375,1777205433456,-150.0,0.00016164,2]
[421174376,1777205433466,-150.0,0.00016164,2]
[421174377,1777205433477,-210.8698419,0.00016164,2]
[421174378,1777205433488,-150.0,0.00016164,2]
[421174379,1777205433498,-150.0,0.00016164,2]
[421174380,1777205433509,-150.0,0.00016164,2]
[421174381,1777205433519,-150.0,0.00016164,2]
[421174382,1777205433529,-500.0,0.00016173,2]
[421174383,1777205433541,-242.0,0.0001624,5]
[421174384,1777205433552,-1299.60806426,0.00016242,2]
[421174385,1777205433563,-31566.38518997,0.00016312,2]
[421174386,1777205433835,-194.83112329,0.00016111,2]
[421174387,1777205433846,-213.35342835,0.00016111,2]
[421174388,1777205433856,-500.0,0.00016111,2]
[421174389,1777205433867,-190.25236964,0.00016111,2]
[421174390,1777205433878,-2131.44677955,0.00016312,2]
[421174405,1777205440136,-151.0,0.00016112,2]
[421174406,1777205440145,-9325.19304477,0.00016312,2]
[421174407,1777205440155,-2500.0,0.00016438,2]
[421174408,1777205440165,-2500.0,0.00016438,2]
[421174409,1777205440175,-2500.0,0.00016438,2]
[421174410,1777205440185,-3000.0,0.00016438,2]
[421174411,1777205440195,-3000.0,0.00016438,2]
[421174412,1777205440206,-3000.0,0.00016438,2]
[421174413,1777205440217,-3000.0,0.00016438,2]
[421174414,1777205440228,-3000.0,0.00016438,2]
[421174415,1777205440237,-3000.0,0.00016438,2]
[421174416,1777205440247,-3000.0,0.00016438,2]
[421174417,1777205440258,-3000.0,0.00016438,2]
[421174418,1777205440267,-500.0,0.000165,3]
[421174419,1777205440277,-150.0,0.000168,2]
[421174420,1777205440288,-299.38916964,0.000168,5]
[421174421,1777205440298,-1000.0,0.00016817,2]
[421174422,1777205440308,-912.6345386,0.00016817,2]
[421174423,1777205440318,-7709.87620017,0.00016817,2]
[421174424,1777205440328,-151.0,0.00016817,2]
[421174425,1777205440337,-500.0,0.00016817,2]
[421174426,1777205440347,-3000.0,0.00016817,2]
[421174427,1777205440358,-3000.0,0.00016817,2]
[421174428,1777205440367,-3000.0,0.00016817,2]
[421174429,1777205440377,-3000.0,0.00016817,2]
[421174430,1777205440387,-1008.54,0.000169,2]
[421174431,1777205440397,-500.0,0.00017,7]
[421174432,1777205440407,-500.0,0.00017,3]
[421174433,1777205440418,-151.0,0.00017159,2]
[421174434,1777205440427,-151.0,0.00017159,2]
[421174435,1777205440437,-151.0,0.00017159,2]
[421174436,1777205440447,-2245.80938322,0.00017159,2]
[421174437,1777205440458,-9999.99,0.00017728,2]
[421174438,1777205440467,-3213.93,0.00017728,2]
[421174439,1777205440477,-9999.99,0.00017728,2]
[421174440,1777205440487,-3005.09,0.00017728,2]
[421174441,1777205440497,-9999.99,0.00017728,2]
[421174442,1777205440506,-8292.16,0.00017728,2]
[421174443,1777205440516,-500.0,0.00017935,2]
[421174444,1777205440526,-500.0,0.00017935,2]
[421174445,1777205440535,-500.0,0.00017935,2]
[421174446,1777205440545,-66866.8293461,0.00017936,2]
[421174447,1777205440554,-165.116504,0.00017936,2]
[421174448,1777205440564,-3000.0,0.00017936,2]
[421174449,1777205440574,-3000.0,0.00017936,2]
[421174451,1777205440584,-3000.0,0.00017936,2]
[421174452,1777205440593,-3000.0,0.00017936,2]
[421174453,1777205440604,-151.0,0.00017936,2]
[421174454,1777205440615,-151.0,0.00017936,2]
[421174455,1777205440626,-10247.7417,0.00017988,2]
[421174456,1777205440636,-151.0,0.00017988,2]
[421174457,1777205440646,-500.0,0.00018,7]
[421174458,1777205440655,-500.0,0.00018,5]
[421174459,1777205440665,-201.0,0.0001805,2]
[421174460,1777205440675,-743.50770149,0.0001807,2]
[421174461,1777205440685,-7665.0709518,0.0001807,2]
[421174462,1777205440695,-187.78006525,0.0001807,2]
[421174463,1777205440705,-152.0,0.0001807,2]
[421174464,1777205440715,-152.0,0.0001807,2]
[421174465,1777205440725,-621.78829552,0.0001807,2]
[421174466,1777205440734,-152.0,0.0001807,2]
[421174467,1777205440745,-151.0,0.0001807,2]
[421174468,1777205440757,-152.0,0.0001807,2]
[421174469,1777205440769,-211.40802048,0.0001807,2]
[421174470,1777205440780,-152.17572315,0.0001807,2]
[421174471,1777205440792,-219.23011724,0.0001807,2]
[421174472,1777205440802,-227.34163157,0.0001807,2]
[421174473,1777205440812,-235.75327194,0.0001807,2]
[421174474,1777205440822,-244.476143,0.0001807,2]
[421174475,1777205440831,-253.52176029,0.0001807,2]
[421174476,1777205440841,-262.90206542,0.0001807,2]
[421174477,1777205440851,-272.62944185,0.0001807,2]
[421174478,1777205440861,-171.34876127,0.0001807,2]
[421174479,1777205440872,-279.9045709,0.0001807,2]
[421174480,1777205440883,-1000.0,0.0001807,2]
[421174481,1777205440893,-1000.0,0.0001807,2]
[421174482,1777205440903,-1000.0,0.0001807,2]
[421174483,1777205440913,-1000.0,0.0001807,2]
[421174484,1777205440923,-1000.0,0.0001807,2]
[421174485,1777205440933,-1000.0,0.0001807,2]
[421174486,1777205440943,-708.30776376,0.0001807,2]
[421174487,1777205440953,-174.61919141,0.0001807,2]
[421174488,1777205440963,-187.78006525,0.0001807,2]
[421174489,1777205440972,-503.0,0.00018179,6]
[421174490,1777205440982,-364.697216,0.00018184,7]
[421174491,1777205440992,-386.132292,0.00018184,2]
[421174492,1777205441003,-318.545009,0.00018228,7]
[421174493,1777205441012,-297.259526,0.00018228,2]
[421174494,1777205441023,-381.325815,0.00018228,7]
[421174495,1777205441033,-378.508731,0.00018228,7]
[421174496,1777205441043,-367.411506,0.00018228,7]
[421174497,1777205441054,-481.170093,0.00018228,2]
[421174498,1777205441064,-3410.0543072,0.00018255,2]
[421174499,1777205441074,-150.0,0.00018345,2]
[421174500,1777205441084,-150.0,0.00018345,2]
[421174501,1777205441093,-150.20331427,0.00018345,2]
[421174502,1777205441103,-150.0,0.00018345,2]
[421174503,1777205441113,-150.0,0.00018345,4]
[421174504,1777205441123,-150.0,0.00018345,2]
[421174505,1777205441133,-150.0,0.00018345,2]
[421174506,1777205441144,-150.0,0.00018345,2]
[421174507,1777205441154,-150.0,0.00018345,2]
[421174508,1777205441164,-150.0,0.00018345,2]
[421174509,1777205441174,-150.0,0.00018345,2]
[421174510,1777205441185,-150.0,0.00018345,2]
[421174511,1777205441194,-1000.0,0.000184,2]
[421174512,1777205441204,-710.0,0.000184,2]
[421174513,1777205441214,-880.0,0.000184,2]
[421174514,1777205441224,-614.0,0.000184,2]
[421174515,1777205441234,-150.0,0.00018409,2]
[421174516,1777205441244,-150.0,0.00018421,2]
[421174517,1777205441254,-719.5676173,0.00018444,2]
[421174518,1777205441264,-150.0,0.00018473,2]
[421174519,1777205441274,-150.0,0.00018491,2]
[421174520,1777205441285,-150.0,0.00018496,2]
[421174521,1777205441295,-150.0,0.00018502,2]
[421174522,1777205441304,-7456.7718166,0.00018526,2]
[421174523,1777205441314,-150.0,0.00018536,2]
[421174524,1777205441324,-1349.0,0.00018555,2]
[421174525,1777205441333,-623.0,0.00018555,2]
[421174526,1777205441344,-3531.0,0.00018555,2]
[421174527,1777205441353,-150.359,0.00018555,2]
[421174528,1777205441363,-1266.0,0.00018555,2]
[421174529,1777205441373,-151.0,0.00018555,2]
[421174530,1777205441382,-150.0,0.00018572,2]
[421174531,1777205441392,-3000.0,0.000186,2]
[421174532,1777205441402,-3000.0,0.000186,2]
[421174533,1777205441412,-3000.0,0.000186,2]
[421174534,1777205441421,-3000.0,0.000186,2]
[421174535,1777205441431,-150.0,0.000186,2]
[421174536,1777205441441,-150.0,0.000186,2]
[421174537,1777205441451,-771.01748645,0.00018618,2]
[421174538,1777205441461,-282.18765374,0.00018618,2]
[421174539,1777205441472,-644.79446246,0.00018618,2]
[421174540,1777205441481,-290.26104003,0.00018618,2]
[421174541,1777205441491,-181.08010149,0.00018618,2]
[421174542,1777205441501,-194.72792766,0.00018618,2]
[421174543,1777205441511,-150.0,0.00018636,2]
[421174544,1777205441521,-150.0,0.00018636,2]
[421174545,1777205441531,-150.0,0.00018647,2]
[421174546,1777205441541,-150.0,0.00018659,2]
[421174547,1777205441551,-151.0,0.00018659,2]
[421174548,1777205441562,-151.0,0.00018659,2]
[421174549,1777205441573,-150.0,0.00018664,2]
[421174550,1777205441583,-150.0,0.00018685,4]
[421174551,1777205441594,-150.0,0.00018723,2]
[421174552,1777205441604,-150.0,0.00018727,2]
[421174553,1777205441614,-760.8859636,0.00018739,2]
[421174554,1777205441623,-150.0,0.00018782,2]
[421174555,1777205441633,-150.0,0.00018791,2]
[421174556,1777205441644,-159.0,0.00018797,5]
[421174557,1777205441654,-258.0,0.00018797,5]
[421174558,1777205441664,-150.0,0.00018798,2]
[421174559,1777205441674,-3414.79,0.000188,2]
[421174560,1777205441683,-150.0,0.00018816,2]
[421174561,1777205441693,-150.0,0.00018855,2]
[421174562,1777205441704,-150.0,0.00018855,2]
[421174563,1777205441715,-150.0,0.00018855,2]
[421174564,1777205441726,-150.0,0.00018874,2]
[421174565,1777205441736,-150.0,0.00018918,2]
[421174566,1777205441746,-150.0,0.00018928,2]
[421174567,1777205441756,-150.0,0.00018928,2]
[421174568,1777205441766,-2656.5534872,0.00018947,2]
[421174569,1777205441775,-3860.1882016,0.00018947,2]
[421174570,1777205441785,-150.0,0.00018949,2]
[421174571,1777205441795,-160.5572376,0.00018964,2]
[421174572,1777205441806,-150.0,0.00018972,2]
[421174573,1777205441816,-150.0,0.00018982,2]
[421174574,1777205441826,-500.0,0.00019,5]
[421174575,1777205441836,-150.0,0.00019025,4]
[421174576,1777205441846,-150.0,0.00019025,2]
[421174577,1777205441856,-150.0,0.00019046,2]
[421174578,1777205441866,-201.0,0.0001905,2]
[421174579,1777205441877,-1663.8306896,0.00019064,2]
[421174580,1777205441886,-150.0,0.00019073,2]
[421174581,1777205441896,-150.0,0.000191,2]
[421174582,1777205441906,-150.0,0.0001911,2]
[421174583,1777205441916,-150.0,0.0001911,2]
[421174584,1777205441925,-43023.02501429,0.00019123,2]
[421174585,1777205441936,-150.0,0.00019129,2]
[421174586,1777205441945,-799.54513345,0.00019166,2]
[421174587,1777205441955,-758.01008847,0.00019166,2]
[421174588,1777205441965,-301.00069851,0.00019166,2]
[421174589,1777205441974,-187.78006525,0.00019166,2]
[421174590,1777205441984,-269.23569804,0.00019166,2]
[421174591,1777205441994,-150.0,0.00019173,2]
[421174592,1777205442004,-150.0,0.00019176,2]
[421174593,1777205442014,-150.0,0.00019219,4]
[421174594,1777205442024,-150.0,0.00019219,4]
[421174595,1777205442034,-150.0,0.00019237,4]
[421174596,1777205442043,-150.0,0.00019251,4]
[421174597,1777205442054,-150.0,0.00019286,4]
[421174598,1777205442064,-150.0,0.00019301,4]
[421174599,1777205442074,-150.0,0.00019327,4]
[421174600,1777205442084,-150.0,0.00019364,4]
[421174601,1777205442094,-150.0,0.00019364,4]
[421174602,1777205442104,-150.0,0.00019364,4]
[421174603,1777205442116,-150.0,0.00019364,4]
[421174604,1777205442125,-150.0,0.00019364,4]
[421174605,1777205442135,-150.0,0.00019364,4]
[421174606,1777205442145,-150.0,0.00019364,4]
[421174607,1777205442155,-150.0,0.00019402,4]
[421174608,1777205442165,-592.757205,0.00019422,2]
[421174609,1777205442174,-861.3244116,0.00019422,2]
[421174610,1777205442184,-150.0,0.00019428,4]
[421174611,1777205442194,-150.0,0.00019443,4]
[421174612,1777205442205,-150.0,0.00019478,4]
[421174613,1777205442216,-150.0,0.00019492,4]
[421174614,1777205442225,-150.0,0.0001951,4]
[421174615,1777205442237,-150.0,0.0001951,4]
[421174616,1777205442246,-150.0,0.00019553,4]
[421174617,1777205442256,-150.0,0.00019555,4]
[421174618,1777205442266,-150.0,0.000196,4]
[421174619,1777205442276,-150.0,0.00019619,4]
[421174620,1777205442286,-150.0,0.00019619,4]
[421174622,1777205442295,-150.0,0.00019629,4]
[421174623,1777205442305,-150.0,0.00019656,4]
[421174624,1777205442315,-150.0,0.00019683,4]
[421174625,1777205442325,-150.0,0.00019704,4]
[421174626,1777205442336,-150.0,0.00019704,4]
[421174627,1777205442345,-743.50770149,0.00019714,2]
[421174628,1777205442355,-174.61919142,0.00019714,2]
[421174629,1777205442365,-150.0,0.00019747,4]
[421174631,1777205442374,-150.0,0.00019756,4]
[421174633,1777205442384,-500.0,0.00019758,2]
[421174634,1777205442393,-500.0,0.00019758,2]
[421174635,1777205442403,-500.0,0.00019758,2]
[421174636,1777205442413,-151.0,0.00019759,2]
[421174637,1777205442423,-66866.8293461,0.00019759,2]
[421174638,1777205442432,-150.0,0.0001978,4]
[421174639,1777205442442,-150.0,0.00019801,4]
[421174640,1777205442451,-150.0,0.00019801,4]
[421174641,1777205442461,-150.0,0.0001981,4]
[421174642,1777205442471,-150.0,0.00019855,4]
[421174643,1777205442481,-150.0,0.00019874,4]
[421174644,1777205442490,-150.0,0.00019874,4]
[421174645,1777205442499,-150.0,0.00019874,4]
[421174646,1777205442509,-4900.0,0.000199,7]
[421174647,1777205442519,-151.0,0.000199,2]
[421174648,1777205442529,-150.0,0.00019913,4]
[421174650,1777205442540,-150.0,0.00019931,4]
[421174652,1777205442550,-150.0,0.00019938,4]
[421174654,1777205442559,-150.0,0.00019947,4]
[421174656,1777205442569,-158.0,0.0002,2]
[421174657,1777205442579,-614.0,0.0002,2]
[421174659,1777205442589,-1008.54,0.0002,2]
[421174660,1777205442598,-153.0,0.0002,2]
[421174661,1777205442608,-1211.0,0.0002,2]
[421174662,1777205442618,-500.0,0.0002,20]
[421174663,1777205442628,-500.0,0.0002,15]
[421174664,1777205442638,-500.0,0.0002,7]
[421174665,1777205442647,-281.0,0.0002,2]
[421174666,1777205442657,-154.0,0.0002,2]
[421174667,1777205442666,-174.0,0.0002,2]
[421174668,1777205442675,-825.0,0.0002,30]
[421174669,1777205442685,-250.0,0.0002,2]
[421174670,1777205442695,-871.0,0.0002,2]
[421174671,1777205442704,-150.0,0.00020001,4]
[421174673,1777205442714,-150.0,0.00020006,4]
[421174675,1777205442724,-150.0,0.00020044,4]
[421174676,1777205442734,-201.0,0.0002005,2]
[421174679,1777205443087,-179.293609,0.00020051,7]
[421174680,1777205443096,-182.90477,0.00020051,2]
[421174681,1777205443107,-150.0,0.00020065,4]
[421174682,1777205443116,-150.0,0.0002007,4]
[421174683,1777205443126,-150.0,0.00020082,4]
[421174684,1777205443136,-150.0,0.00020092,4]
[421174685,1777205443145,-150.0,0.00020092,4]
[421174686,1777205443156,-150.0,0.00020129,4]
[421174687,1777205443166,-150.0,0.00020129,4]
[421174688,1777205443176,-150.0,0.00020157,4]
[421174689,1777205443186,-150.0,0.00020192,4]
[421174690,1777205443195,-150.0,0.00020227,4]
[421174691,1777205443205,-150.0,0.00020233,4]
[421174692,1777205443215,-150.0,0.00020238,4]
[421174693,1777205443225,-150.0,0.00020256,4]
[421174694,1777205443234,-150.0,0.00020308,4]
[421174695,1777205443244,-150.0,0.0002032,4]
[421174696,1777205443254,-255.0,0.00020384,4]
[421174697,1777205443264,-150.0,0.00020384,4]
[421174698,1777205443274,-150.0,0.00020384,4]
[421174699,1777205443283,-150.0,0.00020384,4]
[421174700,1777205443293,-150.0,0.00020384,4]
[421174701,1777205443303,-150.0,0.00020384,4]
[421174703,1777205443314,-261.26925773,0.00020384,4]
[421174704,1777205443323,-150.00000002,0.00020384,4]
[421174705,1777205443332,-157.56180726,0.00020384,4]
[421174706,1777205443342,-222.06899998,0.00020384,4]
[421174707,1777205443351,-150.00000001,0.00020384,4]
[421174708,1777205443360,-503.0,0.00020469,8]
[421174709,1777205443370,-154.85,0.00020564,2]
[421174710,1777205443379,-158.0,0.00021,2]
[421174711,1777205443388,-296.44812148,0.00021,2]
[421174712,1777205443404,-317.55187852,0.00021,2]
[421174713,1777205443413,-153.0,0.00021,2]
[421174714,1777205443423,-1211.0,0.00021,2]
[421174715,1777205443432,-151.0,0.00021,2]
[421174716,1777205443441,-281.0,0.00021,2]
[421174717,1777205443451,-174.0,0.00021,2]
[421174718,1777205443460,-250.0,0.00021,2]
[421174719,1777205443469,-201.0,0.0002105,2]
[421174720,1777205443479,-428.79376687,0.00021555,2]
[421174721,1777205443490,-405.20998149,0.00021555,2]
[421174722,1777205443600,-2696.99625164,0.00021555,2]
[421174723,1777205443609,-852.49794806,0.00021583,2]
[421174724,1777205443621,-383.66948163,0.00021583,2]
[421174725,1777205443632,-8107.34694089,0.00021583,2]
[421174726,1777205443687,-8127.62951044,0.00021583,2]
[421174727,1777205443708,-892.0951925,0.00021583,2]
[421174728,1777205444262,-870.292853,0.00021583,2]
[421174729,1777205444278,-696.39892429,0.00021583,2]
[421174730,1777205444290,-3302.55053612,0.00021583,2]
[421174731,1777205444302,-572.36872953,0.00021583,2]
[421174732,1777205445633,-19770.16517613,0.00021583,2]
[421174733,1777205445688,-825.0,0.0002,30]
[421174734,1777205445698,-23291.81405351,0.00021583,2]
[421174735,1777205445707,-500.0,0.00021583,2]
[421174736,1777205445717,-500.0,0.00021583,2]
[421174737,1777205445726,-500.0,0.00021583,2]
[421174738,1777205445735,-151.0,0.00021584,2]
[421174739,1777205445744,-151.0,0.00021918,2]
[421174740,1777205445753,-151.000015,0.00021918,2]
[421174741,1777205445763,-8840.12006456,0.00021935,2]
[421174742,1777205445793,-439.13846193,0.00021935,2]
[421174743,1777205445890,-280.14786396,0.00021935,2]
[421174748,1777206143530,-280.0,8.219e-05,2]
[421174749,1777206143556,-250.0,9.041e-05,2]
[421174750,1777206143581,-503.0,0.000136,2]
[421174751,1777206143607,-160.0,0.00013673,2]
[421174752,1777206143631,-1048.0,0.00013699,2]
[421174753,1777206143656,-565.0,0.00013699,2]
[421174754,1777206143682,-201.13979638,0.00013999,2]
[421174755,1777206143707,-162.25551732,0.00014062,2]
[421174756,1777206143732,-1830.6046863,0.00015051,2]
[421174757,1777206145289,-169.3953137,0.00015051,2]
[421174758,1777206145313,-4830.6046863,0.00015151,2]
[421174759,1777206146635,-169.3953137,0.00015151,2]
[421174760,1777206146658,-803.06,0.0001525,2]
[421174761,1777206146681,-803.06,0.0001525,2]
[421174762,1777206146703,-803.06,0.0001525,2]
[421174763,1777206146726,-803.06,0.0001525,2]
[421174764,1777206175306,-280.0,8.219e-05,2]
[421174765,1777206317395,-503.0,0.000136,2]
[421174766,1777206317420,-200.0,0.00014752,2]
[421174767,1777206317442,-200.0,0.0001496,2]
[421174768,1777206317466,-200.0,0.00015593,2]
[421174769,1777206317489,-200.0,0.00015593,2]
[421174770,1777206317513,-200.22589029,0.00015593,2]
[421174771,1777206430455,280.0,8.219e-05,2]
[421174772,1777206582132,-1048.0,0.00013699,2]
[421174786,1777206632405,-789.0,0.00015904,2]
[421174787,1777206632416,-149.55,0.00016002,2]
[421174788,1777206632428,-50.45,0.00016002,2]
[421174789,1777206632438,-160.0,0.00016058,2]
[421174790,1777206632449,-162.25551732,0.00016066,2]
[421174791,1777206632459,-880.72052985,0.00016109,2]
[421174792,1777206632469,-124.74813804,0.00016437,2]
[421174793,1777206632567,-175.25186196,0.00016437,2]
[421174794,1777206632578,-269.91051082,0.00016438,2]
[421174795,1777206632590,-1982.90913914,0.00016438,2]
[421174796,1777206632604,-247.18035004,0.00016438,2]
[421174797,1777206632614,-2500.0,0.00016438,2]
[421174798,1777206632624,-2500.0,0.00016438,2]
[421174799,1777206632635,-2500.0,0.00016438,2]
[421174800,1777206632645,-2500.0,0.00016438,2]
[421174801,1777206632655,-200.0,0.00017494,2]
[421174802,1777206632666,-5673.87212703,0.00017666,2]
[421174803,1777206632678,-7154.67188616,0.00017666,2]
[421174804,1777206632688,-420.0,0.00017963,2]
[421174805,1777206632698,-2500.0,0.00018525,2]
[421174806,1777206632708,-150.99,0.00018627,2]
[421174807,1777206632718,-299.99,0.00018627,4]
[421174808,1777206632728,-578.20924308,0.00018627,2]
[421174809,1777206632738,-187.78006525,0.00018627,2]
[421174810,1777206632754,-646.65982734,0.00018627,2]
[421174811,1777206632764,-200.0,0.00018627,2]
[421174812,1777206632774,-1280.88388878,0.00018627,2]
[421174813,1777206632784,-151.0,0.00018627,2]
[421174814,1777206632794,-187.78006526,0.00018627,2]
[421174815,1777206632804,-279.9045709,0.00018627,2]
[421174816,1777206632818,-151.12206715,0.00018627,2]
[421174817,1777206632828,-174.61919141,0.00018627,2]
[421174818,1777206632839,-187.78006524,0.00018627,2]
[421174819,1777206632849,-813.19,0.00018627,2]
[421174820,1777206632859,-797.0,0.0001884,2]
[421174821,1777206632870,-813.19,0.00018901,2]
[421174822,1777206632880,-194.72792766,0.00019175,2]
[421174823,1777206632890,-200.0,0.00019175,2]
[421174824,1777206632900,-1328.27659266,0.00019175,2]
[421174825,1777206632911,-813.19,0.00019175,2]
[421174826,1777206632921,-813.19,0.00019448,2]
[421174827,1777206632931,-587.0,0.00019631,2]
[421174828,1777206632942,-813.19,0.00019722,2]
[421174829,1777206632952,-201.93286099,0.00019723,2]
[421174830,1777206632962,-200.0,0.00019723,2]
[421174831,1777206632973,-1377.42282659,0.00019723,2]
[421174832,1777206632983,-2985.13121691,0.00019805,2]
[421174833,1777206632996,-3371.81398648,0.00019805,2]
[421174834,1777206633006,-2525.003,0.000199,2]
[421174835,1777206633016,-170.761,0.000199,2]
[421174836,1777206633026,-500.0,0.000199,2]
[421174837,1777206633037,-313.0,0.000199,2]
[421174838,1777206633047,-9205.89416023,0.000199,2]
[421174839,1777206633059,-160668.56890023,0.000199,2]
[421174841,1777206637919,-483.17665875,0.00019899,2]
[421174842,1777206637929,-500.0,0.00019899,2]
[421174843,1777206637940,-10.16486466,0.00019899,2]
[421174844,1777206637974,-489.83513534,0.00019899,2]
[421174845,1777206637985,-335.43421152,0.00019899,2]
[421174846,1777206638193,-164.56578848,0.00019899,2]
[421174847,1777206638204,-500.0,0.00019899,2]
[421174848,1777206638214,-500.0,0.00019899,2]
[421174849,1777206638225,-500.0,0.00019899,2]
[421174850,1777206638236,-500.0,0.00019899,2]
[421174851,1777206638247,-500.0,0.00019899,2]